bitfinex-derivatives/quotes_BTCF0:USTF0_20240923
["timestamp","ask_amount","ask_price","bid_price","bid_amount"]
[1727077858702,0.4428,63538.0,63537.0,0.078698]
[1727077860288,0.3628,63538.0,63537.0,0.078698]
[1727077860495,0.00084,63540.0,63537.0,1.196894]
[1727077860698,0.08,63547.0,63546.0,0.078687]
[1727077860997,0.08,63547.0,63546.0,0.17380542]
[1727077861413,0.08,63547.0,63546.0,0.078687]
[1727077861797,0.08,63547.0,63546.0,0.25223209]
[1727077861998,0.08,63547.0,63546.0,0.15732003]
[1727077862206,0.081,63547.0,63546.0,0.078687]
[1727077863699,0.081,63547.0,63546.0,0.079687]
[1727077863700,0.082,63547.0,63546.0,0.079687]
[1727077864105,0.082,63547.0,63546.0,0.14252766]
[1727077865588,0.082,63547.0,63546.0,0.079687]
[1727077869592,0.082,63547.0,63546.0,0.12678119]
[1727077872204,0.082,63547.0,63546.0,0.079687]
[1727077872593,0.082,63547.0,63546.0,0.128087]
[1727077876710,0.082,63547.0,63546.0,0.206774]
[1727077876909,0.0037,63561.0,63560.0,0.078669]
[1727077877107,0.3608,63570.0,63563.0,0.078666]
[1727077877308,0.36168,63570.0,63569.0,0.158658]
[1727077877511,0.08236004,63578.0,63577.0,0.078648]
[1727077877899,0.08,63578.0,63577.0,0.078648]
[1727077878310,0.4908,63581.0,63580.0,0.078645]
[1727077881203,0.4908,63581.0,63580.0,0.080645]
[1727077881400,0.4908,63581.0,63580.0,0.082645]
[1727077881604,0.13,63581.0,63580.0,0.082645]
[1727077881805,0.3608,63593.0,63580.0,1.43664]
[1727077882012,0.3608,63593.0,63592.0,0.07863]
[1727077884205,0.3678,63593.0,63592.0,0.07963]
[1727077884402,0.3688,63593.0,63592.0,0.07963]
[1727077884611,0.3618,63593.0,63592.0,0.07863]
[1727077884820,0.3628,63593.0,63592.0,0.07863]
[1727077887309,0.3628,63593.0,63583.0,0.07864]
[1727077887512,0.13,63584.0,63583.0,0.07864]
[1727077887712,0.13,63584.0,63579.0,0.08100396]
[1727077887916,0.13,63580.0,63579.0,0.08100396]
[1727077888421,0.13,63584.0,63579.0,0.00235896]
[1727077888607,0.13,63584.0,63583.0,0.078641]
[1727077889522,0.0451,63591.0,63583.0,0.3608]
[1727077889722,0.001,63593.0,63584.0,0.0486]
[1727077889925,0.001,63593.0,63592.0,0.07863]
[1727077890712,0.3608,63595.0,63594.0,0.078627]
[1727077891728,0.13,63596.0,63595.0,0.078626]
[1727077893916,0.134,63596.0,63595.0,0.078626]
[1727077894117,0.138,63596.0,63595.0,0.078626]
[1727077894620,0.138,63596.0,63583.0,0.3608]
[1727077894823,0.13,63586.0,63579.0,0.00235896]
[1727077895030,0.13,63581.0,63579.0,0.00235896]
[1727077895215,0.13,63581.0,63580.0,0.078645]
[1727077895734,0.13,63584.0,63579.0,0.00235896]
[1727077896230,0.13,63588.0,63582.0,0.3608]
[1727077896424,0.13,63588.0,63583.0,0.008]
[1727077897116,0.13,63585.0,63582.0,0.3608]
[1727077897312,0.001,63584.0,63583.0,0.078641]
[1727077897623,0.001,63584.0,63583.0,0.087641]
[1727077898618,0.13,63585.0,63584.0,0.07864]
[1727077899614,0.002,63588.0,63587.0,0.078636]
[1727077899918,0.001,63588.0,63587.0,0.078636]
[1727077900533,0.13,63589.0,63588.0,0.078635]
[1727077901821,0.13,63589.0,63588.0,0.082635]
[1727077902727,0.3608,63590.0,63589.0,0.078633]
[1727077903436,0.4908,63590.0,63589.0,0.078633]
[1727077903929,0.4908,63590.0,63589.0,0.081633]
[1727077904122,0.4908,63590.0,63589.0,0.083633]
[1727077913234,0.569432,63590.0,63589.0,0.005]
[1727077914241,1.71948014,63590.0,63589.0,0.005]
[1727077914427,1.66669011,63590.0,63589.0,0.005]
[1727077915223,1.06669011,63590.0,63589.0,0.005]
[1727077915653,1.06669011,63590.0,63589.0,0.002]
[1727077915837,0.59793011,63590.0,63589.0,0.002]
[1727077916344,0.078636,63587.0,63582.0,0.1257106]
[1727077916528,0.4908,63583.0,63582.0,0.1257106]
[1727077917730,0.4908,63583.0,63582.0,0.078642]
[1727077918135,0.4908,63583.0,63582.0,0.082642]
[1727077919333,0.4908,63583.0,63582.0,0.087642]
[1727077919530,0.4908,63583.0,63582.0,0.083642]
[1727077919837,0.4908,63583.0,63582.0,0.13477404]
[1727077921435,0.4908,63583.0,63582.0,0.087642]
[1727077927044,0.4908,63583.0,63582.0,0.13478393]
[1727077927248,0.4908,63583.0,63582.0,0.087642]
[1727077930045,0.3608,63583.0,63582.0,0.087642]
[1727077930252,0.07832336,63589.0,63582.0,0.009]
[1727077930543,0.0453,63593.0,63589.0,0.157266]
[1727077930544,0.07832336,63593.0,63589.0,0.157266]
[1727077930752,0.07832336,63599.0,63592.0,0.13]
[1727077931047,0.36168,63604.0,63601.0,0.078619]
[1727077931048,0.07832336,63602.0,63601.0,0.078619]
[1727077931436,0.3608,63604.0,63602.0,0.078617]
[1727077931437,0.07832336,63603.0,63602.0,0.078617]
[1727077931737,0.43912336,63604.0,63603.0,0.078616]
[1727077932342,0.3608,63604.0,63603.0,0.078616]
[1727077933551,0.3728,63604.0,63603.0,0.079616]
[1727077934150,0.3818,63604.0,63603.0,0.080616]
[1727077940545,0.460415,63604.0,63603.0,0.002]
[1727077944545,0.099615,63604.0,63603.0,0.002]
[1727077944745,0.460415,63604.0,63603.0,0.002]
[1727077947461,0.53873836,63604.0,63603.0,0.002]
[1727077947847,0.460415,63604.0,63603.0,0.002]
[1727077951459,0.53873836,63604.0,63603.0,0.002]
[1727077952963,0.460415,63604.0,63603.0,0.002]
[1727077953462,0.53873836,63604.0,63603.0,0.002]
[1727077956354,0.460415,63604.0,63603.0,0.002]
[1727077957363,0.48590759,63604.0,63603.0,0.002]
[1727077958272,0.40729235,63604.0,63603.0,0.080616]
[1727077960270,0.50143864,63604.0,63603.0,0.080616]
[1727077960773,0.40729235,63604.0,63603.0,0.080616]
[1727077962967,0.50143864,63604.0,63603.0,0.080616]
[1727077963362,0.40729235,63604.0,63603.0,0.080616]
[1727077966181,0.021,63604.0,63603.0,0.12774953]
[1727077966375,0.3818,63604.0,63603.0,0.080616]
[1727077966679,0.4618,63604.0,63603.0,0.080616]
[1727077966975,0.48729034,63604.0,63603.0,0.080616]
[1727077967472,0.4618,63604.0,63603.0,0.080616]
[1727077968283,0.5403395,63604.0,63603.0,0.080616]
[1727077968468,0.5403395,63604.0,63603.0,0.12774953]
[1727077969171,0.5403395,63604.0,63603.0,0.080616]
[1727077970971,0.4618,63604.0,63603.0,0.12774953]
[1727077971175,0.5403395,63604.0,63603.0,0.080616]
[1727077971381,0.4618,63604.0,63603.0,0.080616]
[1727077972182,0.5403395,63604.0,63603.0,0.080616]
[1727077972375,0.4618,63604.0,63603.0,0.080616]
[1727077972579,0.101,63604.0,63603.0,0.080616]
[1727077972768,0.4618,63604.0,63603.0,0.080616]
[1727077974071,0.5403395,63604.0,63603.0,0.080616]
[1727077976285,0.4618,63604.0,63603.0,0.080616]
[1727077977786,0.101,63604.0,63603.0,0.080616]
[1727077978174,0.101,63604.0,63603.0,0.12774953]
[1727077978374,0.4618,63604.0,63603.0,0.080616]
[1727077978570,0.101,63604.0,63603.0,0.080616]
[1727077978781,0.101,63604.0,63603.0,0.12774953]
[1727077979085,0.101,63604.0,63603.0,0.080616]
[1727077979584,0.4618,63604.0,63603.0,0.080616]
[1727077980572,0.5403395,63604.0,63603.0,0.080616]
[1727077980871,0.4618,63604.0,63603.0,0.12774953]
[1727077981181,0.101,63604.0,63603.0,0.080616]
[1727077981979,0.101,63604.0,63603.0,0.12774953]
[1727077982684,0.4618,63604.0,63603.0,0.12774953]
[1727077982889,0.4618,63604.0,63603.0,0.080616]
[1727077984386,0.5403395,63604.0,63603.0,0.080616]
[1727077984580,0.4618,63604.0,63603.0,0.080616]
[1727077984975,0.4618,63604.0,63603.0,0.12774953]
[1727077985590,0.101,63604.0,63603.0,0.12774953]
[1727077985787,0.4618,63604.0,63603.0,0.12774953]
[1727077985986,0.5403395,63604.0,63603.0,0.080616]
[1727077986294,0.1795395,63604.0,63603.0,0.080616]
[1727077986588,0.101,63604.0,63603.0,0.12774953]
[1727077986790,0.0995395,63604.0,63603.0,0.080616]
[1727077987085,0.1795395,63604.0,63603.0,0.080616]
[1727077988186,0.5403395,63604.0,63603.0,0.080616]
[1727077988393,0.5403395,63604.0,63603.0,0.12774953]
[1727077989384,0.4618,63604.0,63603.0,0.12774953]
[1727077991903,0.48729021,63604.0,63603.0,0.12774953]
[1727077992195,0.48590521,63604.0,63603.0,0.04913353]
[1727077992398,0.56590521,63604.0,63603.0,0.002]
[1727077992788,0.61230681,63604.0,63603.0,0.002]
[1727077993184,0.70666002,63604.0,63603.0,0.002]
[1727077994495,0.53369181,63604.0,63603.0,0.080616]
[1727077994794,0.40729181,63604.0,63603.0,0.080616]
[1727077994993,0.48729181,63604.0,63603.0,0.080616]
[1727077996989,0.48729181,63604.0,63603.0,0.12774953]
[1727077997194,0.4604258,63604.0,63603.0,0.12774953]
[1727077997394,0.3818,63604.0,63603.0,0.080616]
[1727077997601,0.4604258,63604.0,63603.0,0.080616]
[1727077998294,0.3818,63604.0,63603.0,0.080616]
[1727077998600,0.4604258,63604.0,63603.0,0.080616]
[1727077999300,0.3818,63604.0,63603.0,0.080616]
[1727077999604,0.4604258,63604.0,63603.0,0.080616]
[1727078000604,0.48729017,63604.0,63603.0,0.080616]
[1727078007098,0.48729114,63604.0,63603.0,0.080616]
[1727078009200,0.48729114,63604.0,63603.0,0.12771208]
[1727078009397,0.12649114,63604.0,63603.0,0.12771208]
[1727078009593,0.48729114,63604.0,63603.0,0.12771208]
[1727078012703,0.66025946,63604.0,63600.0,0.12571061]
[1727078013003,0.66025946,63604.0,63600.0,0.078619]
[1727078013004,0.08,63601.0,63600.0,0.078619]
[1727078013195,0.02549125,63601.0,63600.0,0.078619]
[1727078013392,0.10549125,63601.0,63600.0,0.078619]
[1727078014105,0.10549125,63601.0,63600.0,0.079619]
[1727078014907,0.10549125,63601.0,63600.0,0.080619]
[1727078015404,0.11549125,63601.0,63600.0,0.080619]
[1727078015603,0.12549125,63601.0,63600.0,0.080619]
[1727078017197,0.48629125,63601.0,63600.0,0.080619]
[1727078018514,0.40629125,63601.0,63600.0,0.080619]
[1727078018806,0.48629125,63601.0,63600.0,0.080619]
[1727078019007,0.53940598,63601.0,63600.0,0.080619]
[1727078019705,0.45940598,63601.0,63600.0,0.080619]
[1727078019912,0.3808,63601.0,63600.0,0.080619]
[1727078023203,0.3808,63601.0,63600.0,0.14337714]
[1727078024009,0.4608,63601.0,63600.0,0.14337714]
[1727078025409,0.3808,63601.0,63600.0,0.14337714]
[1727078025614,0.4608,63601.0,63600.0,0.080619]
[1727078026304,0.3808,63601.0,63600.0,0.080619]
[1727078026504,0.4608,63601.0,63600.0,0.080619]
[1727078027516,0.3808,63601.0,63600.0,0.080619]
[1727078027907,0.4608,63601.0,63600.0,0.080619]
[1727078030417,0.4608,63601.0,63600.0,0.12773611]
[1727078030817,0.4608,63601.0,63600.0,0.080619]
[1727078031015,0.4608,63601.0,63600.0,0.12773598]
[1727078031222,0.53940598,63601.0,63600.0,0.12773598]
[1727078031919,0.53940598,63601.0,63600.0,0.080619]
[1727078033522,0.4608,63601.0,63600.0,0.080619]
[1727078033922,0.48629187,63601.0,63600.0,0.080619]
[1727078034125,0.4608,63601.0,63600.0,0.080619]
[1727078034513,0.4708,63601.0,63600.0,0.080619]
[1727078034722,0.5494131,63601.0,63600.0,0.080619]
[1727078035114,0.4708,63601.0,63600.0,0.080619]
[1727078035521,0.54941254,63601.0,63600.0,0.080619]
[1727078035715,0.4708,63601.0,63600.0,0.080619]
[1727078036213,0.54941289,63601.0,63600.0,0.080619]
[1727078036525,0.49629177,63601.0,63600.0,0.080619]
[1727078036708,0.41629177,63601.0,63600.0,0.080619]
[1727078036912,0.49629177,63601.0,63600.0,0.002]
[1727078037124,0.57491077,63601.0,63600.0,0.002]
[1727078037309,0.66926398,63601.0,63600.0,0.002]
[1727078037926,0.57491077,63601.0,63600.0,0.002]
[1727078038117,0.66924857,63601.0,63600.0,0.002]
[1727078038322,0.57491077,63601.0,63600.0,0.002]
[1727078038826,0.07863,63592.0,63588.0,0.06275814]
[1727078039119,0.07863,63592.0,63585.0,0.40779193]
[1727078039120,0.4408,63589.0,63586.0,0.06275814]
[1727078039319,0.4408,63589.0,63585.0,0.06511704]
[1727078039526,0.08,63586.0,63585.0,0.14375504]
[1727078040323,0.08,63586.0,63585.0,0.0809969]
[1727078040635,0.08,63586.0,63585.0,0.14375504]
[1727078040817,0.08,63586.0,63585.0,0.0809969]
[1727078041922,0.082,63586.0,63585.0,0.0929969]
[1727078042425,0.081,63586.0,63585.0,0.0879969]
[1727078042624,0.081,63586.0,63585.0,0.15081017]
[1727078043117,0.081,63586.0,63585.0,0.14681017]
[1727078043118,0.08,63586.0,63585.0,0.14681017]
[1727078043925,0.08,63586.0,63585.0,0.0053589]
[1727078044227,0.08,63586.0,63585.0,0.06817217]
[1727078044431,0.08,63586.0,63585.0,0.14681017]
[1727078045021,0.4408,63589.0,63588.0,0.078635]
[1727078046124,0.4418,63589.0,63588.0,0.078635]
[1727078046628,0.4438,63589.0,63588.0,0.078635]
[1727078048927,0.3638,63589.0,63588.0,0.078635]
[1727078049127,0.083,63589.0,63588.0,0.078635]
[1727078049524,0.083,63589.0,63588.0,0.14143499]
[1727078049932,0.3608,63595.0,63594.0,0.078627]
[1727078050930,0.08,63598.0,63597.0,0.078623]
[1727078052233,0.091,63598.0,63597.0,0.079623]
[1727078052639,0.102,63598.0,63597.0,0.080623]
[1727078053838,0.022,63598.0,63597.0,0.080623]
[1727078054040,0.102,63598.0,63597.0,0.080623]
[1727078070245,0.022,63598.0,63597.0,0.080623]
[1727078070440,0.102,63598.0,63597.0,0.080623]
[1727078075553,0.102,63598.0,63597.0,0.14335324]
[1727078076157,0.022,63598.0,63597.0,0.22197624]
[1727078076359,0.022,63598.0,63597.0,0.159246]
[1727078076660,0.102,63598.0,63597.0,0.22197624]
[1727078077358,0.022,63598.0,63597.0,0.22197624]
[1727078077659,0.102,63598.0,63597.0,0.159246]
[1727078078358,0.102,63598.0,63597.0,0.22200917]
[1727078078562,0.102,63598.0,63597.0,0.159246]
[1727078081753,0.022,63598.0,63597.0,0.159246]
[1727078081955,0.102,63598.0,63597.0,0.159246]
[1727078087066,0.022,63598.0,63597.0,0.159246]
[1727078087266,0.01,63601.0,63600.0,0.07862]
[1727078087470,0.01,63601.0,63600.0,0.61058558]
[1727078087763,0.01,63601.0,63600.0,0.68937696]
[1727078088460,0.01,63601.0,63600.0,0.6750915]
[1727078088664,0.01,63601.0,63600.0,0.76740601]
[1727078088862,0.01,63601.0,63600.0,0.76840601]
[1727078089063,0.012,63601.0,63600.0,0.76840601]
[1727078089461,0.012,63601.0,63600.0,0.59766]
[1727078089768,0.016,63601.0,63600.0,0.76945187]
[1727078090564,0.016,63601.0,63600.0,0.59866]
[1727078090762,0.096,63601.0,63600.0,0.59866]
[1727078092358,0.096,63601.0,63600.0,0.61707543]
[1727078093666,0.016,63601.0,63600.0,0.61707543]
[1727078093863,0.096,63601.0,63600.0,0.61707543]
[1727078095472,0.096,63601.0,63600.0,0.52004]
[1727078096665,0.016,63601.0,63600.0,0.52004]
[1727078096969,0.016,63601.0,63600.0,0.59866]
[1727078098173,0.016,63601.0,63600.0,1.67034]
[1727078101266,0.016,63601.0,63600.0,1.07034]
[1727078101875,0.016,63601.0,63600.0,0.59866]
[1727078104780,0.016,63601.0,63600.0,0.23786]
[1727078110683,0.016,63601.0,63600.0,0.3162915]
[1727078110883,0.016,63601.0,63600.0,0.23786]
[1727078112379,0.016,63601.0,63600.0,0.40880111]
[1727078112685,0.016,63601.0,63600.0,0.40877756]
[1727078113480,0.016,63601.0,63600.0,0.33034606]
[1727078113695,0.016,63601.0,63600.0,0.40877382]
[1727078114493,0.016,63601.0,63600.0,0.69114606]
[1727078115895,0.016,63601.0,63600.0,0.33034606]
[1727078118006,1e-06,63601.0,63600.0,0.41039052]
[1727078118200,1e-06,63601.0,63600.0,0.55329052]
[1727078118796,0.080001,63601.0,63600.0,0.25177052]
[1727078119306,0.08,63601.0,63600.0,0.25577052]
[1727078120202,0.07860898,63609.0,63600.0,0.17715052]
[1727078120404,0.07860898,63609.0,63608.0,0.07861]
[1727078120607,0.15860898,63609.0,63608.0,0.07861]
[1727078121309,0.07860898,63609.0,63608.0,0.07861]
[1727078121504,0.51940898,63609.0,63608.0,0.07861]
[1727078122394,0.0464,63611.0,63610.0,0.078607]
[1727078122899,0.0464,63611.0,63610.0,0.1413384]
[1727078123500,0.1264,63611.0,63610.0,0.078607]
[1727078124199,0.1264,63611.0,63610.0,0.1413384]
[1727078124802,0.1264,63611.0,63610.0,0.078607]
[1727078129113,0.0464,63611.0,63610.0,0.078607]
[1727078129317,0.4872,63611.0,63610.0,0.078607]
[1727078131010,0.12502589,63611.0,63610.0,0.078607]
[1727078131210,0.1264,63611.0,63610.0,0.078607]
[1727078132315,0.20502589,63611.0,63610.0,0.078607]
[1727078133819,0.56582589,63611.0,63610.0,0.078607]
[1727078134013,0.56582589,63611.0,63601.0,0.50192]
[1727078134014,0.51268808,63611.0,63603.0,0.0627314]
[1727078134214,0.3608,63604.0,63603.0,0.078616]
[1727078134519,0.078616,63603.0,63598.0,0.45329195]
[1727078134720,0.08,63599.0,63598.0,0.53191395]
[1727078135211,0.08,63599.0,63598.0,0.46918255]
[1727078136014,0.08,63599.0,63598.0,0.47418255]
[1727078136920,0.08,63599.0,63598.0,0.46918255]
[1727078139314,0.0465,63601.0,63598.0,0.39056055]
[1727078139519,0.08,63599.0,63598.0,0.46918255]
[1727078140209,0.0465,63601.0,63600.0,0.07862]
[1727078140406,0.1265,63601.0,63600.0,0.07862]
[1727078144112,0.08,63601.0,63600.0,0.07862]
[1727078144306,0.36172,63603.0,63602.0,0.078617]
[1727078144307,0.4408,63603.0,63602.0,0.078617]
[1727078144712,0.08,63603.0,63602.0,0.078617]
[1727078146815,0.4408,63603.0,63602.0,0.078617]
[1727078147914,0.08,63603.0,63602.0,0.078617]
[1727078148121,0.4408,63603.0,63602.0,0.078617]
[1727078148321,0.08,63603.0,63602.0,0.078617]
[1727078151113,0.08,63603.0,63602.0,0.079617]
[1727078152816,0.08,63603.0,63602.0,0.078617]
[1727078158729,0.08,63603.0,63602.0,0.12563335]
[1727078159436,0.08,63603.0,63602.0,0.078617]
[1727078161124,0.08,63603.0,63602.0,0.12563155]
[1727078161125,0.158616,63603.0,63602.0,0.12563155]
[1727078161327,0.158616,63603.0,63602.0,0.078617]
[1727078161532,0.23720888,63603.0,63602.0,0.078617]
[1727078162329,0.158616,63603.0,63602.0,0.078617]
[1727078162533,0.18410795,63603.0,63602.0,0.078617]
[1727078162736,0.158616,63603.0,63602.0,0.078617]
[1727078163636,0.18410795,63603.0,63602.0,0.078617]
[1727078163819,0.18410792,63603.0,63602.0,0.078617]
[1727078164229,0.18410792,63603.0,63600.0,0.04701455]
[1727078164230,0.078619,63601.0,63600.0,0.04701455]
[1727078164421,0.158619,63601.0,63597.0,0.0627314]
[1727078164735,0.08,63598.0,63597.0,0.1413544]
[1727078165230,0.158622,63598.0,63597.0,0.1413544]
[1727078165426,0.158622,63598.0,63597.0,0.078623]
[1727078165636,0.158622,63598.0,63594.0,0.3608]
[1727078165637,0.47172,63597.0,63594.0,0.04706096]
[1727078165820,1.1449164,63598.0,63587.0,0.0627314]
[1727078165821,0.53513077,63595.0,63587.0,0.0627314]
[1727078166024,0.519435,63588.0,63586.0,0.078637]
[1727078166224,0.078636,63587.0,63586.0,0.078637]
[1727078166540,0.4408,63588.0,63582.0,0.0627314]
[1727078166826,0.4408,63588.0,63581.0,0.00235895]
[1727078166827,0.078642,63582.0,63581.0,0.00235895]
[1727078167033,0.158642,63582.0,63581.0,0.00235895]
[1727078167419,0.144642,63582.0,63581.0,0.00235895]
[1727078168022,0.144642,63582.0,63581.0,0.01435895]
[1727078169136,0.144642,63582.0,63581.0,0.02635895]
[1727078171028,0.505442,63582.0,63581.0,0.02635895]
[1727078171719,0.078652,63574.0,63571.0,0.078655]
[1727078171927,0.08,63572.0,63571.0,0.078655]
[1727078172855,0.08,63572.0,63571.0,0.092655]
[1727078173027,0.081,63572.0,63571.0,0.106655]
[1727078174135,0.081,63572.0,63571.0,0.028]
[1727078174136,0.159654,63572.0,63571.0,0.028]
[1727078174432,0.250854,63572.0,63571.0,0.028]
[1727078175233,0.250854,63572.0,63560.0,0.078668]
[1727078175234,0.1732,63572.0,63560.0,0.078668]
[1727078175439,0.4408,63561.0,63560.0,0.078668]
[1727078175831,0.4408,63561.0,63558.0,0.00235982]
[1727078176032,0.4408,63561.0,63557.0,0.078672]
[1727078176232,0.08,63558.0,63557.0,0.078672]
[1727078178645,0.3568,63561.0,63558.0,0.078671]
[1727078178939,0.08,63559.0,63558.0,0.078671]
[1727078180351,0.08,63559.0,63558.0,0.081671]
[1727078185651,0.158671,63559.0,63558.0,0.081671]
[1727078189241,0.08,63559.0,63558.0,0.081671]
[1727078189440,0.3558,63561.0,63560.0,0.078669]
[1727078189635,0.4358,63561.0,63560.0,0.078669]
[1727078191743,0.4368,63561.0,63560.0,0.078669]
[1727078192637,0.081,63561.0,63560.0,0.078669]
[1727078192852,0.001,63561.0,63560.0,0.078669]
[1727078193154,0.001,63561.0,63560.0,0.237338]
[1727078193947,0.3608,63573.0,63572.0,0.078654]
[1727078195443,0.442453,63573.0,63572.0,0.078654]
[1727078195646,0.446453,63573.0,63572.0,0.078654]
[1727078196148,0.447453,63573.0,63572.0,0.078654]
[1727078196448,0.454453,63573.0,63572.0,0.078654]
[1727078198439,0.584453,63573.0,63572.0,0.078654]
[1727078198640,0.5058,63573.0,63563.0,0.078665]
[1727078198840,0.4908,63564.0,63563.0,0.078665]
[1727078200055,0.4908,63564.0,63563.0,0.079665]
[1727078200755,0.569464,63564.0,63563.0,0.001]
[1727078201451,0.078667,63562.0,63558.0,0.078671]
[1727078201657,0.13,63559.0,63558.0,0.078671]
[1727078203356,0.13,63559.0,63558.0,0.079671]
[1727078206253,0.4908,63559.0,63558.0,0.079671]
[1727078206849,0.3608,63559.0,63558.0,0.079671]
[1727078207165,0.3608,63559.0,63558.0,0.1424024]
[1727078207349,0.3608,63559.0,63558.0,0.079671]
[1727078209055,0.3608,63559.0,63558.0,1.360343]
[1727078209459,0.3608,63559.0,63558.0,1.53247495]
[1727078209953,0.51807588,63572.0,63570.0,0.078656]
[1727078210367,0.439455,63572.0,63570.0,0.078656]
[1727078210560,0.439455,63572.0,63571.0,0.078656]
[1727078210751,0.569455,63572.0,63571.0,0.078656]
[1727078211156,0.579455,63572.0,63571.0,0.078656]
[1727078212063,0.591455,63572.0,63571.0,0.078656]
[1727078212454,0.580455,63572.0,63571.0,0.078656]
[1727078212662,0.592455,63572.0,63571.0,0.078656]
[1727078213765,0.5138,63572.0,63571.0,0.078656]
[1727078214168,0.3838,63572.0,63571.0,0.078656]
[1727078214864,0.5138,63572.0,63571.0,0.078656]
[1727078220465,0.4638,63572.0,63571.0,0.078656]
[1727078223772,0.023,63572.0,63571.0,0.157312]
[1727078224159,0.023,63572.0,63571.0,0.31397283]
[1727078224573,0.023,63572.0,63571.0,0.251212]
[1727078224766,0.0215,63572.0,63571.0,0.251212]
[1727078225464,0.0215,63572.0,63571.0,0.31397078]
[1727078225868,0.0215,63572.0,63571.0,0.251212]
[1727078226068,0.1015,63572.0,63571.0,0.078656]
[1727078228373,0.1515,63572.0,63571.0,0.078656]
[1727078230078,0.230154,63572.0,63571.0,0.078656]
[1727078232897,0.5123,63572.0,63571.0,0.078656]
[1727078245785,0.1515,63572.0,63571.0,0.078656]
[1727078245986,0.5123,63572.0,63571.0,0.078656]
[1727078248081,0.59092088,63572.0,63571.0,0.078656]
[1727078248784,0.5123,63572.0,63571.0,0.078656]
[1727078248992,0.59092088,63572.0,63571.0,0.078656]
[1727078250386,0.54092088,63572.0,63571.0,0.078656]
[1727078251187,0.54092088,63572.0,63568.0,0.078658]
[1727078251384,0.158658,63569.0,63568.0,0.078658]
[1727078252695,0.158658,63569.0,63564.0,0.078663]
[1727078252696,0.089,63569.0,63564.0,0.078663]
[1727078252877,0.4408,63565.0,63564.0,0.078663]
[1727078254382,0.4448,63565.0,63564.0,0.078663]
[1727078254792,0.4498,63565.0,63564.0,0.078663]
[1727078256390,0.089,63565.0,63564.0,0.078663]
[1727078256583,0.4498,63565.0,63564.0,0.078663]
[1727078268891,0.089,63565.0,63564.0,0.078663]
[1727078269593,0.4498,63565.0,63564.0,0.078663]
[1727078272305,0.3698,63565.0,63564.0,0.078663]
[1727078279211,0.3698,63565.0,63564.0,0.14142291]
[1727078281097,0.3698,63565.0,63564.0,0.078663]
[1727078281708,0.3698,63565.0,63564.0,0.25098115]
[1727078282205,0.3698,63565.0,63564.0,0.078663]
[1727078283709,0.009,63565.0,63564.0,0.078663]
[1727078284212,0.009,63565.0,63564.0,0.157327]
[1727078284626,0.009,63565.0,63564.0,0.23577804]
[1727078285313,0.009,63565.0,63564.0,0.157327]
[1727078289016,0.07862088,63575.0,63574.0,0.078652]
[1727078289215,0.43941881,63576.0,63573.0,0.04713617]
[1727078289413,0.3608,63576.0,63575.0,0.04713617]
[1727078290112,0.3608,63576.0,63575.0,0.12578717]
[1727078290318,0.3608,63576.0,63575.0,0.078651]
[1727078290918,0.3748,63576.0,63575.0,0.078651]
[1727078291112,0.3748,63576.0,63575.0,0.12578717]
[1727078291415,0.3748,63576.0,63575.0,0.078651]
[1727078291416,0.014,63576.0,63575.0,0.078651]
[1727078291614,0.3608,63583.0,63582.0,0.078642]
[1727078291809,0.00236008,63586.0,63585.0,0.078638]
[1727078292010,0.00236008,63586.0,63585.0,0.22141641]
[1727078292206,0.00236008,63586.0,63585.0,0.2056564]
[1727078292409,0.12391881,63597.0,63585.0,1.1518]
[1727078292614,0.08,63594.0,63587.0,0.04701697]
[1727078293121,0.0453,63597.0,63587.0,0.04701697]
[1727078293320,0.0453,63597.0,63585.0,0.08]
[1727078293321,0.0453,63597.0,63595.0,0.078626]
[1727078295119,0.3838,63596.0,63595.0,0.080626]
[1727078295527,0.4638,63596.0,63595.0,0.080626]
[1727078295821,0.103,63596.0,63595.0,0.080626]
[1727078296009,0.8246,63596.0,63595.0,0.080626]
[1727078297517,0.103,63596.0,63595.0,0.080626]
[1727078297922,0.8246,63596.0,63595.0,0.080626]
[1727078302019,0.903225,63596.0,63595.0,0.080626]
[1727078302214,0.903225,63596.0,63595.0,0.002]
[1727078303424,0.8246,63596.0,63595.0,0.080626]
[1727078305125,0.7446,63596.0,63595.0,0.080626]
[1727078305322,0.8246,63596.0,63595.0,0.080626]
[1727078306028,0.903225,63596.0,63595.0,0.080626]
[1727078306730,0.542425,63596.0,63595.0,0.080626]
[1727078309121,0.181625,63596.0,63595.0,0.080626]
[1727078309424,0.542425,63596.0,63595.0,0.080626]
[1727078311412,0.542425,63596.0,63595.0,0.002]
[1727078314424,0.181625,63596.0,63595.0,0.002]
[1727078314627,0.542425,63596.0,63595.0,0.002]
[1727078316534,0.62104381,63596.0,63595.0,0.002]
[1727078316724,0.542425,63596.0,63595.0,0.002]
[1727078317234,0.62104381,63596.0,63595.0,0.002]
[1727078318336,0.56792144,63596.0,63595.0,0.002]
[1727078319419,0.66225221,63596.0,63595.0,0.002]
[1727078320135,1.02305221,63596.0,63595.0,0.002]
[1727078320444,0.92872144,63596.0,63595.0,0.002]
[1727078320939,0.20712144,63596.0,63595.0,0.002]
[1727078321442,0.9790281,63596.0,63595.0,0.002]
[1727078321634,0.2574281,63596.0,63595.0,0.002]
[1727078321828,0.9790281,63596.0,63595.0,0.002]
[1727078322029,0.2574281,63596.0,63595.0,0.002]
[1727078322233,0.9790281,63596.0,63595.0,0.002]